[Event "Maria Albulet Memorial 2018"]
[Site "Braila"]
[Date "2018.11.09"]
[Round "8"]
[White "Hrib, Andrada-Ioana"]
[Black "Didiliuc, Dariana-Gabriela"]
[Result "1/2-1/2"]
[ECO "D03"]
[WhiteElo "1770"]
[BlackElo "1784"]
[Annotator "NA"]
[PlyCount "50"]
[EventDate "2018.11.03"]
[EventType "swiss"]
[EventCountry "ROU"]
[SourceTitle "playchess.com"]
[Source "ChessBase"]
[SourceQuality "1"]
[TimeControl "40/5400+30:900+30"]

1. d4 {[%emt 0:00:00]} Nf6 {[%emt 0:00:00]} 2. Bg5 {[%emt 0:00:00]} d5 {[%emt 0:00:00]} 3. Nf3 {[%emt 0:00:00]} c6 {[%emt 0:00:31]} 4. e3 {[%emt 0:00:01]} Bf5 {[%emt 0:00:11]} 5. Bd3 {[%emt 0:00:23]} Bxd3 {[%emt 0:00:09]} 6. Qxd3 {[%emt 0:00:02]} e6 {[%emt 0:00:15]} 7. O-O {[%emt 0:00:09]} Bd6 {[%emt 0:00:14]} 8. c4 {[%emt 0:00:05]} Nbd7 {[%emt 0:00:13]} 9. cxd5 {[%emt 0:00:10]} cxd5 {[%emt 0:00:15]} 10. Nc3 {[%emt 0:00:11]} a6 {[%emt 0:00:16]} 11. Rac1 {[%emt 0:00:08]} O-O {[%emt 0:00:14]} 12. Bxf6 {[%emt 0:00:14]} Qxf6 {[%emt 0:01:08]} 13. e4 {[%emt 0:00:32]} dxe4 {[%emt 0:00:21]} 14. Nxe4 {[%emt 0:00:02]} Qe7 {[%emt 0:00:12]} 15. Nxd6 {[%emt 0:00:06]} Qxd6 {[%emt 0:00:05]} 16. Rfd1 {[%emt 0:00:08]} Nf6 {[%emt 0:00:14]} 17. Ne5 {[%emt 0:00:13]} Rac8 {[%emt 0:01:04]} 18. Rxc8 {[%emt 0:00:13]} Rxc8 {[%emt 0:00:06]} 19. h3 {[%emt 0:00:17]} h6 {[%emt 0:00:36]} 20. Nc4 {[%emt 0:00:43]} Qc6 {[%emt 0:00:34]} 21. Ne3 {[%emt 0:00:06]} Nd5 {[%emt 0:00:12]} 22. Nxd5 {[%emt 0:00:11]} Qxd5 {[%emt 0:00:14]} 23. Re1 {[%emt 0:00:10]} Rd8 {[%emt 0:00:30]} 24. Qe4 {[%emt 0:00:17]} Qxe4 {[%emt 0:00:10]} 25. Rxe4 {[%emt 0:00:02]} Rd5 {[%emt 0:00:12]} 1/2-1/2

[Event "Maria Albulet Memorial 2018"]
[Site "Braila"]
[Date "2018.11.10"]
[Round "9"]
[White "Nistor, Valentina"]
[Black "Didiliuc, Dariana-Gabriela"]
[Result "1/2-1/2"]
[ECO "C08"]
[WhiteElo "1881"]
[BlackElo "1784"]
[Annotator "NA RC"]
[PlyCount "79"]
[EventDate "2018.11.03"]
[EventType "swiss"]
[EventCountry "ROU"]
[SourceTitle "playchess.com"]
[Source "ChessBase"]
[SourceQuality "1"]
[TimeControl "40/5400+30:900+30"]

{[%evp 8,76,18,-10,-21,-10,32,-2,29,29,30,18,31,-35,-27,-32,26,14,61,47,57,34,48,36,49,36,30,39,29,0,0,0,10,0,4,-2,0,-22,-24,-16,23,-8,-6,-78,-79,-57,-57,-62,-58,-79,-17,-81,-25,-27,0,-117,0,-266,32767,32767,32767,32767,32767,32767,-166,-185,-129,-125,-131,-130,-132]} 1. e4 {[%emt 0:00:00]} e6 {[%emt 0:03:15]} 2. d4 {[%emt 0:00:00]} d5 {[%emt 0:00:08]} 3. Nd2 {[%emt 0:00:00]} c5 {[%emt 0:00:12]} 4. exd5 {[%emt 0:00:43]} exd5 {[%emt 0:00:16]} 5. dxc5 {[%emt 0:01:58]} Bxc5 {[%emt 0:00:17]} 6. Nb3 {[%emt 0:00:33] LiveBook: 27 Games} Bd6 {[%emt 0:01:47]} 7. c3 {[%emt 0:00:32] C08: French Tarrasch: 3...c5 4 exd5 exd5 sidelines} (7. Bd3 Nf6 8. Qe2+ Be7 9. Nf3 O-O 10. h3 Bb4+ 11. c3 Re8 12. Be3 Bd6 13. O-O Nc6 14. Nbd4 Ne4 15. c4 Nxd4 16. Nxd4 dxc4 17. Bxc4 Qf6 18. Qf3 {½-½ (18) Schramm,C (2354)-Froewis,G (2438) Bayern 2012}) 7... Ne7 {[%emt 0:00:26]} 8. Bd3 {[%emt 0:01:03]} Nbc6 {[%emt 0:01:19]} 9. h3 {[%emt 0:00:53]} O-O $146 {[%emt 0:00:54]} ({Predecessor:} 9... Ne5 10. Bc2 O-O 11. Nf3 N5g6 12. O-O b5 13. Nbd4 b4 14. Bd2 bxc3 15. Bxc3 {½-½ (23) Sheriff,R-Alothman,A (2061) Kuwait 2016}) 10. Qh5 {[%emt 0:03:17]} (10. Nf3 $11) 10... g6 {[%emt 0:03:20]} 11. Qd1 {[%emt 0:02:43]} Be5 {[%emt 0:01:45]} 12. Nf3 {[%emt 0:04:27]} Bg7 {[%emt 0:02:59]} 13. O-O {[%emt 0:00:33]} Bf5 {[%emt 0:03:12]} 14. Bg5 {[%emt 0:03:17]} Qd6 {[%emt 0:02:08]} 15. Be3 {[%emt 0:01:44]} Rfd8 {[%emt 0:04:46]} 16. Nbd4 {[%emt 0:06:09]} Be4 {[%emt 0:11:57]} 17. Re1 {[%emt 0:10:22]} a6 {[%emt 0:02:03]} 18. Ng5 {[%emt 0:05:14]} Bxd3 {[%emt 0:00:44]} 19. Qxd3 {[%emt 0:00:10]} Ne5 {[%emt 0:01:37]} 20. Qe2 {[%emt 0:01:38]} N7c6 {[%emt 0:01:27]} 21. b3 {[%emt 0:06:50]} Qf6 {[%emt 0:01:00]} 22. f4 {[%emt 0:14:43]} Nd7 {[%emt 0:01:10]} 23. Qd2 {[%emt 0:01:30]} Qd6 {[%emt 0:04:11]} 24. Rad1 {[%emt 0:05:37]} Nf6 {[%emt 0:00:30]} 25. Rf1 {[%emt 0:09:08]} (25. Nxc6 $11 {remains equal.} Qxc6 26. Qd3) 25... h6 {[%emt 0:00:43]} 26. Ngf3 {[%emt 0:00:49]} Ne4 {[%emt 0:00:10]} 27. Qd3 {[%emt 0:00:14]} Rac8 {[%emt 0:05:49]} 28. Rc1 $1 {[%emt 0:02:59]} b5 {[%emt 0:11:46]} 29. Rfd1 $1 $11 {[%emt 0:06:33]} Na5 {[%emt 0:01:15]} 30. Ne2 {[%emt 0:02:01]} Nc6 {[%emt 0:01:53]} 31. Nd2 {[%emt 0:01:43] [#]} Qe7 {[%emt 0:01:30]} (31... Nxc3 $1 $17 {[%mdl 512]} 32. Nxc3 (32. Rxc3 Nb4 $17) 32... Nb4) 32. Nd4 $2 {[%emt 0:00:56]} (32. Bb6 $11) 32... Nc5 {[%emt 0:08:13]} 33. Nxc6 {[%emt 0:01:39]} Rxc6 {[%emt 0:00:07]} 34. Qe2 {[%emt 0:04:06]} Re8 {[%emt 0:02:12]} 35. Nf1 {[%emt 0:00:40]} Ne4 {[%emt 0:04:35]} 36. Bd4 {[%emt 0:01:12]} Bxd4+ {[%emt 0:00:15]} 37. cxd4 {[%emt 0:00:17]} Nc3 {[%emt 0:00:31]} 38. Qxe7 {[%emt 0:01:16]} Rxe7 $17 {[%emt 0:00:06]} 39. Re1 {[%emt 0:00:10]} Rec7 {[%emt 0:00:33]} 40. Rc2 {[%emt 0:00:00]} 1/2-1/2

[Event "Maria Albulet Memorial 2018"]
[Site "Braila"]
[Date "2018.11.10"]
[Round "9"]
[White "Mihailova, Alina"]
[Black "Maria, Lia-Alexandra"]
[Result "1-0"]
[ECO "D25"]
[WhiteElo "1790"]
[BlackElo "1479"]
[Annotator "NA RC"]
[PlyCount "107"]
[EventDate "2018.11.03"]
[EventType "swiss"]
[EventCountry "ROU"]
[SourceTitle "playchess.com"]
[Source "ChessBase"]
[SourceQuality "1"]
[TimeControl "40/5400+30:900+30"]

1. d4 {[%emt 0:02:46]} d5 {[%emt 0:00:00]} 2. c4 {[%emt 0:00:09]} dxc4 {[%emt 0:00:00]} 3. e3 {[%emt 0:00:05]} Nf6 {[%emt 0:00:00]} 4. Nf3 {[%emt 0:00:30]} a6 {[%emt 0:00:10]} 5. Bxc4 {[%emt 0:00:08]} e6 {[%emt 0:00:14]} 6. O-O {[%emt 0:00:44]} b5 {[%emt 0:00:39]} 7. Be2 {[%emt 0:09:22]} Bb7 {[%emt 0:00:26]} 8. a4 {[%emt 0:01:25]} b4 {[%emt 0:02:11]} 9. a5 {[%emt 0:02:05]} Nbd7 {[%emt 0:01:12]} 10. Nbd2 {[%emt 0:02:23]} c5 {[%emt 0:01:17]} 11. Nc4 {[%emt 0:03:00]} Be7 {[%emt 0:01:46]} 12. Bd2 {[%emt 0:06:27]} O-O {[%emt 0:01:23]} 13. dxc5 {[%emt 0:06:54]} Bxc5 {[%emt 0:00:15]} 14. Qb3 {[%emt 0:00:35]} Rb8 {[%emt 0:01:09]} 15. Rfd1 {[%emt 0:00:57]} Qe7 {[%emt 0:00:41]} 16. Be1 {[%emt 0:01:23]} Rfc8 {[%emt 0:03:14]} 17. Rac1 {[%emt 0:07:18]} h5 {[%emt 0:06:51]} 18. Nfe5 {[%emt 0:03:23]} g6 {[%emt 0:04:47]} 19. Nd3 {[%emt 0:01:42]} Bd5 {[%emt 0:03:37]} 20. Nf4 {[%emt 0:04:00]} Bc6 {[%emt 0:01:10]} 21. Nd2 {[%emt 0:05:23]} Kg7 {[%emt 0:02:26]} 22. Bxa6 {[%emt 0:01:51]} Rh8 {[%emt 0:01:00]} 23. Bc4 {[%emt 0:03:50]} g5 {[%emt 0:04:41]} 24. Nd3 {[%emt 0:08:08]} h4 {[%emt 0:01:11]} 25. Nf1 {[%emt 0:03:25]} h3 {[%emt 0:00:59]} 26. g3 {[%emt 0:03:27]} Bf3 {[%emt 0:01:37]} 27. Rd2 {[%emt 0:01:37]} Ng4 {[%emt 0:00:48]} 28. Rdc2 {[%emt 0:02:21]} Bd6 {[%emt 0:00:35]} 29. Ra1 {[%emt 0:10:23]} Nde5 {[%emt 0:00:40]} 30. Nxe5 {[%emt 0:01:51]} Nxe5 {[%emt 0:00:06]} 31. Nd2 {[%emt 0:00:11]} Bg2 {[%emt 0:00:31]} 32. Be2 {[%emt 0:02:00]} g4 {[%emt 0:00:52]} 33. f4 {[%emt 0:03:28]} gxf3 {[%emt 0:00:17]} 34. Bd3 {[%emt 0:01:33]} Ng4 {[%emt 0:04:05]} 35. Bf1 {[%emt 0:01:45]} Qb7 {[%emt 0:02:08]} 36. Bf2 {[%emt 0:00:38]} Rh6 {[%emt 0:04:07]} 37. a6 {[%emt 0:00:35]} Qa8 {[%emt 0:00:41]} 38. Qd3 {[%emt 0:00:36]} Nxf2 {[%emt 0:02:18]} 39. Kxf2 {[%emt 0:00:24]} Rd8 {[%emt 0:01:06]} 40. Qe4 {[%emt 0:00:00]} Qa7 {[%emt 0:00:00]} 41. Qb7 {[%emt 0:04:51]} Qxb7 {[%emt 0:06:34]} 42. axb7 {[%emt 0:00:03]} Bxf1 {[%emt 0:00:41]} 43. Nxf1 {[%emt 0:00:43]} Rb8 {[%emt 0:01:39]} 44. Ra7 {[%emt 0:00:29]} Rhh8 {[%emt 0:00:22]} 45. Nd2 {[%emt 0:00:52]} Rhe8 {[%emt 0:00:33]} 46. Rc6 {[%emt 0:02:03]} Be5 {[%emt 0:01:03]} 47. Nc4 {[%emt 0:00:21]} Bf6 {[%emt 0:00:21]} 48. Nd6 {[%emt 0:02:36]} Rf8 {[%emt 0:00:47]} 49. Rc8 {[%emt 0:01:59]} Be7 {[%emt 0:01:00]} 50. Rxf8 {[%emt 0:01:00]} Bxf8 {[%emt 0:00:44]} 51. Nc8 {[%emt 0:02:04]} Bc5 {[%emt 0:00:29]} 52. Ra5 {[%emt 0:00:06]} Bf8 {[%emt 0:00:12]} 53. Rb5 {[%emt 0:00:06]} f6 {[%emt 0:01:53]} 54. Na7 {[%emt 0:00:23]} 1-0

[Event "Maria Albulet Memorial 2018"]
[Site "Braila"]
[Date "2018.11.10"]
[Round "9"]
[White "Otetea, Ioana"]
[Black "Hrib, Andrada-Ioana"]
[Result "1/2-1/2"]
[ECO "B43"]
[WhiteElo "1602"]
[BlackElo "1770"]
[Annotator "NA RC"]
[PlyCount "86"]
[EventDate "2018.11.03"]
[EventType "swiss"]
[EventCountry "ROU"]
[SourceTitle "playchess.com"]
[Source "ChessBase"]
[SourceQuality "1"]
[TimeControl "40/5400+30:900+30"]

1. e4 {[%emt 0:00:00]} c5 {[%emt 0:00:00]} 2. Nf3 {[%emt 0:00:00]} e6 {[%emt 0:00:11]} 3. d4 {[%emt 0:00:00]} cxd4 {[%emt 0:00:02]} 4. Nxd4 {[%emt 0:00:00]} a6 {[%emt 0:00:02]} 5. Nc3 {[%emt 0:00:00]} Qc7 {[%emt 0:00:04]} 6. g3 {[%emt 0:00:07]} Nf6 {[%emt 0:00:11]} 7. Bg2 {[%emt 0:00:15]} d6 {[%emt 0:00:14]} 8. a4 {[%emt 0:00:40]} Nc6 {[%emt 0:00:43]} 9. O-O {[%emt 0:00:08]} Be7 {[%emt 0:00:13]} 10. Nb3 {[%emt 0:01:29]} O-O {[%emt 0:01:57]} 11. f4 {[%emt 0:00:44]} Rb8 {[%emt 0:19:41]} 12. a5 {[%emt 0:00:53]} b5 {[%emt 0:05:17]} 13. axb6 {[%emt 0:00:30]} Qxb6+ {[%emt 0:00:02]} 14. Kh1 {[%emt 0:00:11]} Bb7 {[%emt 0:00:47]} 15. g4 {[%emt 0:06:15]} Rfc8 {[%emt 0:13:35]} 16. g5 {[%emt 0:01:15]} Nd7 {[%emt 0:00:05]} 17. Rf3 {[%emt 0:05:49]} Nb4 {[%emt 0:06:02]} 18. Na4 {[%emt 0:05:39]} Qd8 {[%emt 0:02:34]} 19. c3 {[%emt 0:02:04]} Bxe4 {[%emt 0:01:49]} 20. cxb4 {[%emt 0:02:54]} Bxf3 {[%emt 0:00:01]} 21. Qxf3 {[%emt 0:03:02]} Rxb4 {[%emt 0:02:58]} 22. Bd2 {[%emt 0:01:16]} Rbb8 {[%emt 0:02:00]} 23. Nd4 {[%emt 0:05:34]} d5 {[%emt 0:03:31]} 24. Bc3 {[%emt 0:04:26]} Bb4 {[%emt 0:01:02]} 25. Bf1 {[%emt 0:04:06]} Bxc3 {[%emt 0:02:32]} 26. bxc3 {[%emt 0:04:41]} Qa5 {[%emt 0:01:52]} 27. Qd1 {[%emt 0:00:25]} Nc5 {[%emt 0:06:19]} 28. Nxc5 {[%emt 0:01:12]} Qxc5 {[%emt 0:00:02]} 29. Bxa6 {[%emt 0:03:47]} Rc7 {[%emt 0:00:41]} 30. Nb5 {[%emt 0:03:25]} Rc6 {[%emt 0:00:42]} 31. Nd4 {[%emt 0:02:47]} Rc7 {[%emt 0:03:27]} 32. Bd3 {[%emt 0:07:54]} Rcb7 {[%emt 0:07:05]} 33. Qc2 {[%emt 0:03:31]} g6 {[%emt 0:00:04]} 34. Ra2 {[%emt 0:01:16]} Qc7 {[%emt 0:04:18]} 35. Qd2 {[%emt 0:02:10]} Qc5 {[%emt 0:02:54]} 36. h4 {[%emt 0:05:15]} Rc7 {[%emt 0:05:08]} 37. Rc2 {[%emt 0:03:48]} Qa5 {[%emt 0:00:29]} 38. Rc1 {[%emt 0:02:29]} Rbc8 {[%emt 0:02:13]} 39. Ne2 {[%emt 0:02:22]} d4 {[%emt 0:05:05]} 40. Nxd4 {[%emt 0:00:00]} Rxc3 {[%emt 0:00:00]} 41. Rxc3 {[%emt 0:04:28]} Rxc3 {[%emt 0:02:44]} 42. Kh2 {[%emt 0:01:20]} Qc5 {[%emt 0:07:46]} 43. Nf3 {[%emt 0:03:17]} Ra3 {[%emt 0:03:18]} 1/2-1/2